Workbook

Sheet 车库灯箱
A1: 城市 | B1: 媒体名称 | C1: 频次 | D1: 发布总量(块) | E1: 购买周期(周) | F1: 刊例价 | G1: 刊例价单位 | H1: 实际购买刊例价 | I1: 实际购买刊例价单位 | J1: 折扣 | K1: 媒体总净价(元) | L1: 首次制作安装费(元/次/块) | M1: 总制作费(元) | N1: 总净价(元) | O1: 总净价单位 | P1: 成本折扣 | Q1: 媒体费总价 | R1: 供应商 | S1: 单日覆盖人流量/人次 | T1: 总曝光/人次 | U1: CPM(元) | V1: SOV | W1: 备注 | X1: 对应比稿
A2: 北京 | B2: 车库灯箱30块套装 | C2: 固定 | D2: 30 | E2: 2 | F2: 900,000 | G2: 元/30块/4周 | H2: =F2/30/E2*D2 -> 450000 | I2: 元/30块/2周 | J2: =65%*(1-2%) -> 63.70% | K2: =H2*J2 -> 286,650 | L2: 500 | M2: =L2*D2 -> 15,000 | N2: =K2+M2 -> 301,650 | O2: 元/2周 | P2: 30% | Q2: =H2*P2+M2 -> 150000 | R2: 善行 | S2: =12000*D2 -> 360,000 | T2: =S2*14 -> 5,040,000 | U2: =N2/T2*1000 -> 59.85 | V2: =D2/385 -> 7.79% | W2: 一、此媒体刊例分别有30块套装、50块套装、100块套装； 1，投放30块以下，使用30块套装刊例； 2，投放30块以上（含30块）、50块以下，使用使用30块套装刊例； 3，投放50块以上（含50块）、100块以下，使用使用50块套装刊例； 4，投放100块以上（含100块），使用使用100块套装刊例； 二、此媒体4周起做，如做2周，需加收首次制作安装费，即500元/次/块 三、固定周日上刊，周一开始算发布期。
A3: 上海 | B3: 车库灯箱30块套装 | C3: 固定 | D3: 30 | E3: 2 | F3: 900,000 | G3: 元/30块/4周 | H3: =F3/30/E3*D3 -> 450000 | I3: 元/30块/2周 | J3: =65%*(1-2%) -> 63.70% | K3: =H3*J3 -> 286,650 | L3: 500 | M3: =L3*D3 -> 15,000 | N3: =K3+M3 -> 301,650 | O3: 元/2周 | P3: 30% | Q3: =H3*P3+M3 -> 150000 | R3: 善行 | S3: =13000*D3 -> 390,000 | T3: =S3*14 -> 5,460,000 | U3: =N3/T3*1000 -> 55.25 | V3: =D3/150 -> 20.00% | W3: 一、此媒体刊例分别有30块套装、50块套装、100块套装； 1，投放30块以下，使用30块套装刊例； 2，投放30块以上（含30块）、50块以下，使用使用30块套装刊例； 3，投放50块以上（含50块）、100块以下，使用使用50块套装刊例； 4，投放100块以上（含100块），使用使用100块套装刊例； 二、此媒体4周起做，如做2周，需加收首次制作安装费，即500元/次/块 三、固定周日上刊，周一开始算发布期。
A4: 广州 | B4: 车库灯箱30块套装 | C4: 固定 | D4: 30 | E4: 2 | F4: 900,000 | G4: 元/30块/4周 | H4: =F4/30/E4*D4 -> 450000 | I4: 元/30块/2周 | J4: =65%*(1-2%) -> 63.70% | K4: =H4*J4 -> 286,650 | L4: 500 | M4: =L4*D4 -> 15,000 | N4: =K4+M4 -> 301,650 | O4: 元/2周 | P4: 30% | Q4: =H4*P4+M4 -> 150000 | R4: 善行 | S4: =12000*D4 -> 360,000 | T4: =S4*14 -> 5,040,000 | U4: =N4/T4*1000 -> 59.85 | V4: =D4/350 -> 8.57% | W4: 一、此媒体刊例分别有30块套装、50块套装、100块套装； 1，投放30块以下，使用30块套装刊例； 2，投放30块以上（含30块）、50块以下，使用使用30块套装刊例； 3，投放50块以上（含50块）、100块以下，使用使用50块套装刊例； 4，投放100块以上（含100块），使用使用100块套装刊例； 二、此媒体4周起做，如做2周，需加收首次制作安装费，即500元/次/块 三、固定周日上刊，周一开始算发布期。
A5: 深圳 | B5: 车库灯箱30块套装 | C5: 固定 | D5: 30 | E5: 2 | F5: 900,000 | G5: 元/30块/4周 | H5: =F5/30/E5*D5 -> 450000 | I5: 元/30块/2周 | J5: =65%*(1-2%) -> 63.70% | K5: =H5*J5 -> 286,650 | L5: 500 | M5: =L5*D5 -> 15,000 | N5: =K5+M5 -> 301,650 | O5: 元/2周 | P5: 30% | Q5: =H5*P5+M5 -> 150000 | R5: 善行 | S5: =11000*D5 -> 330,000 | T5: =S5*14 -> 4,620,000 | U5: =N5/T5*1000 -> 65.29 | V5: =D5/210 -> 14.29% | W5: 一、此媒体刊例分别有30块套装、50块套装、100块套装； 1，投放30块以下，使用30块套装刊例； 2，投放30块以上（含30块）、50块以下，使用使用30块套装刊例； 3，投放50块以上（含50块）、100块以下，使用使用50块套装刊例； 4，投放100块以上（含100块），使用使用100块套装刊例； 二、此媒体4周起做，如做2周，需加收首次制作安装费，即500元/次/块 三、固定周日上刊，周一开始算发布期。
